[Event "ETCC Open 2023"]
[Site "Budva"]
[Date "2023.11.14"]
[Round "4.21"]
[White "Saric, Ivan"]
[Black "Radjabov, Teimour"]
[Result "1-0"]
[ECO "C42"]
[WhiteElo "2659"]
[BlackElo "2745"]
[Annotator "TA"]
[PlyCount "151"]
[EventDate "2023.11.10"]
[EventType "team-tourn"]
[EventCountry "MNE"]
[SourceTitle "playchess.com"]
[Source "ChessBase"]
[SourceQuality "1"]
[WhiteTeam "Croatia"]
[BlackTeam "Azerbaijan"]
[WhiteTeamCountry "CRO"]
[BlackTeamCountry "AZE"]
[TimeControl "40/5400+30:1800+30"]

{[%evp 15,151,23,25,14,9,16,13,20,22,27,23,25,18,24,14,0,0,-20,0,0,0,0,11,5,126,81,79,83,83,95,105,101,93,81,127,129,128,127,310,97,154,136,148,39,39,17,18,15,16,18,16,4,41,47,43,13,15,15,15,15,78,25,80,84,85,89,86,78,89,91,78,77,96,82,115,89,92,70,84,63,68,68,66,79,138,150,145,140,136,106,241,233,236,233,215,214,214,214,256,263,300,301,279,59,59,59,175,108,230,228,224,220,386,379,1957,1729,2000,1865,1786,1598,29976,29977,29977,29978,29980,29977,29983,29984,29984,0,29981,29982,29984,29985,29985,29986,29985,29986]} 1. e4 {[%emt 0:00:02]} e5 {[%emt 0:00:16]} 2. Nf3 {[%emt 0:00:04]} Nf6 {[%emt 0:00:05]} 3. Nxe5 {[%emt 0:00:16]} d6 {[%emt 0:00:07]} 4. Nf3 {[%emt 0:00:04]} Nxe4 {[%emt 0:00:07]} 5. d4 {[%emt 0:00:19]} d5 {[%emt 0:00:14]} 6. Bd3 {[%emt 0:00:04]} Bf5 {[%emt 0:00:08]} 7. O-O {[%emt 0:00:07]} Be7 {[%emt 0:00:19]} 8. Re1 {[%emt 0:00:32]} O-O {[%emt 0:00:21]} 9. Nbd2 {[%emt 0:00:51][%cal Rd2e4] C42: Petroff Defence: 3 Nxe5 and unusual White 3rd moves.} Nd6 {[%emt 0:00:25]} 10. Nf1 {[%emt 0:00:46]} Bxd3 {[%emt 0:00:23]} 11. Qxd3 {[%emt 0:00:04] The position is equal.} c6 {[%emt 0:00:09]} 12. Bf4 {[%emt 0:01:03]} Na6 {[%emt 0:00:32] [#]} 13. h4 $1 {[%emt 0:00:44]} Nc7 {[%emt 0:00:35]} 14. Ng5 {[%emt 0:00:41][%csl Gg5][%cal Rd3h7]} g6 {[%emt 0:01:16] [#]} 15. Ng3 $5 $146 {[%emt 0:10:07][%mdl 8] An interesting novelty.} ({Predecessor:} 15. Qh3 Nf5 16. Ne3 Nxd4 17. Be5 Nce6 18. Ng4 Nf5 19. Nxe6 fxe6 20. h5 gxh5 21. Qxh5 {½-½ Maghsoodloo,P (2719)-Duda,J (2732) FIDE World Cup 2023 (4.2)}) 15... Nde8 {[%emt 0:34:07]} 16. Re3 {[%emt 0:21:41]} Bd6 {[%emt 0:14:39]} 17. Bxd6 {[%emt 0:06:00]} Nxd6 {[%emt 0:00:13]} 18. Rae1 {[%emt 0:00:46]} Re8 {[%emt 0:01:25] Black is weak on the dark squares} 19. Re5 {[%emt 0:02:39]} h6 {[%emt 0:14:50]} (19... Qf6 $11 {remains equal.}) 20. Nf3 {[%emt 0:13:21] White has more active pieces.} Qf6 {[%emt 0:00:55]} 21. b3 $1 {[%emt 0:03:54] Prevents Nc4} Ne6 {[%emt 0:06:27]} 22. c4 {[%emt 0:03:18]} h5 {[%emt 0:08:37]} 23. a4 {[%emt 0:06:05]} (23. cxd5 $6 Nf4 24. Rxe8+ Nxe8 $11) 23... Re7 {[%emt 0:08:18]} 24. cxd5 {[%emt 0:06:48]} cxd5 {[%emt 0:05:16]} (24... Nf4 $142 25. Qd2 Nxd5) 25. Qd2 $16 {[%emt 0:00:41]} (25. Rxd5 $2 Nf4 26. Rxd6 Nxd3 $19) 25... Rae8 {[%emt 0:01:21]} 26. Rxd5 {[%emt 0:01:48]} Ng7 $2 {[%emt 0:00:10]} (26... Rd7 $16 {might work better.} 27. Ng5 Ng7) 27. Rxe7 $2 {[%emt 0:01:40]} (27. Ree5 $18 {and the rest is easy.}) 27... Rxe7 {[%emt 0:00:09]} (27... Qxe7 $142 28. Re5 Qd7) 28. Qh6 {[%emt 0:20:05]} Nde8 {[%emt 0:01:56]} 29. Kh2 {[%emt 0:05:01]} ({Better is} 29. Ng5 $16 {Intending Qh7+ and mate.} Ne6 30. N3e4) 29... Ne6 $14 {[%emt 0:00:29]} 30. Qe3 {[%emt 0:04:34] Strongly threatening Re5.} Qf4 {[%emt 0:00:22]} 31. Re5 {[%emt 0:01:26] And now Qxf4 would win.} Qxe3 {[%emt 0:00:20]} 32. Rxe3 {[%emt 0:00:39][%cal Be5e3,Be3c3,Bc3c4][%mdl 32] White wants to play d5.} (32. fxe3 Nf6 33. Ne4 Ng4+ 34. Kg3 Nxe5 35. Nxe5 Rc7 $15) 32... Nf6 {[%emt 0:00:45]} 33. Rc3 {[%emt 0:03:24]} Rd7 {[%emt 0:01:11]} 34. Rc4 {[%emt 0:00:51]} Kg7 {[%emt 0:00:25]} 35. Nf1 {[%emt 0:01:29]} a6 {[%emt 0:00:17]} 36. a5 {[%emt 0:01:45]} Nd5 {[%emt 0:00:47]} 37. Ne3 {[%emt 0:00:42]} Rd6 {[%emt 0:00:25]} (37... Ne7 $11) 38. g3 {[%emt 0:03:19]} (38. Ng5 $16) 38... b5 {[%emt 0:00:08]} (38... Ne7 $11) 39. axb6 $1 $16 {[%emt 0:00:38]} Nxb6 {[%emt 0:00:11]} 40. Rb4 {[%emt 0:00:25]} Nd5 {[%emt 0:00:41]} 41. Rb7 {[%emt 0:30:26]} Rb6 {[%emt 0:09:15]} 42. Rxb6 {[%emt 0:00:00]} Nxb6 {[%emt 0:00:46][%mdl 4096] Endgame KNN-KNN} 43. Kg2 {[%emt 0:00:00]} f6 {[%emt 0:01:37]} 44. Kf1 {[%emt 0:00:00]} g5 {[%emt 0:01:31]} 45. d5 {[%emt 0:00:00]} Nc5 {[%emt 0:02:37]} 46. Nd4 {[%emt 0:00:00] Black must now prevent Ne6+.} Kf7 {[%emt 0:03:36] Prevents Ne6.} 47. Kg2 {[%emt 0:00:00]} a5 {[%emt 0:01:33]} 48. Kf3 {[%emt 0:04:17]} Ke8 {[%emt 0:08:17]} 49. Ke2 {[%emt 0:00:00]} a4 {[%emt 0:04:12]} ({Black should try} 49... gxh4 50. gxh4 Kd7) 50. bxa4 {[%emt 0:00:00]} Ncxa4 {[%emt 0:00:04]} 51. Nb5 {[%emt 0:00:00] Prevents Nc3+.} Nc5 {[%emt 0:00:27]} 52. Kf3 {[%emt 0:00:00] Prevents Ne4.} Kd7 {[%emt 0:00:29] Dodges Nd6} (52... Nd3 $16 {was necessary.} 53. Nd6+ Ke7) 53. Nc3 $1 $18 {[%emt 0:00:00]} Nd3 {[%emt 0:01:14]} 54. Ne4 {[%emt 0:00:00]} Ne5+ {[%emt 0:00:07] [#]} 55. Kg2 $1 {[%emt 0:00:00]} gxh4 {[%emt 0:00:26]} 56. gxh4 {[%emt 0:00:16]} (56. Nxf6+ $6 Ke7 $16) 56... Ng6 {[%emt 0:01:21]} 57. Kg3 {[%emt 0:04:32] Inhibits f5.} f5 {[%emt 0:00:17]} 58. Nf6+ {[%emt 0:00:22]} (58. Nxf5 Nxd5 59. Ng5 Kc6 $14) 58... Kd6 {[%emt 0:00:08] [#]} 59. Nxh5 {[%emt 0:00:13]} ({And not} 59. Nxf5+ Ke5 $11) ({White must play} 59. f4 $1 $18) 59... Ke5 $14 {[%emt 0:00:10]} 60. Kh3 {[%emt 0:03:04][%cal Od5d6] d6! would be deadly.} f4 {[%emt 0:02:30] Black is on the road to losing.} (60... Nxd5 $14 61. Nxd5 Kxd5) 61. Ng2 {[%emt 0:00:33]} (61. Ng4+ $18 Kxd5 62. Ngf6+ Ke5 63. Nh7) 61... Nxd5 {[%emt 0:00:25]} (61... Kf5 $16) 62. Kg4 $18 {[%emt 0:00:05]} Ke4 {[%emt 0:00:34]} 63. f3+ {[%emt 0:00:31]} Ke5 $2 {[%emt 0:00:31]} (63... Kd4 {keeps fighting.} 64. Nhxf4 (64. Ngxf4 Ne3+ 65. Kh3 Ne5 $16) 64... Ne5+ 65. Kg3 Nc7 66. Ne2+ Kd3 67. Nef4+ Kd4 68. Ne2+ Kd3) 64. Kg5 {[%emt 0:00:13]} Nf8 $2 {[%emt 0:00:30]} (64... Nxh4 65. Nxh4 Nc3 66. Ng6+ (66. Nxf4 Ne4+ 67. Kh5 Kxf4 $11) 66... Kd4 67. Kxf4 Nd5+ 68. Kg5 Kd3 69. Ne5+ Ke3) 65. Ngxf4 {[%emt 0:00:55]} Ne7 {[%emt 0:00:25]} 66. Nf6 {[%emt 0:00:16]} Kd4 {[%emt 0:00:13]} 67. h5 {[%emt 0:01:04][%cal Bh4h5,Bh5h6][%mdl 32]} Ke3 {[%emt 0:00:52]} 68. N4d5+ {[%emt 0:00:36]} Nxd5 {[%emt 0:00:11]} 69. Nxd5+ {[%emt 0:00:04]} Kxf3 {[%emt 0:00:04] KN-KN} 70. h6 {[%emt 0:01:22]} Kg3 {[%emt 0:00:38]} 71. Nf4 {[%emt 0:00:40]} Kf3 {[%emt 0:00:38]} 72. Nd5 {[%emt 0:00:57]} Kg3 $1 {[%emt 0:00:16]} 73. Nf6 {[%emt 0:00:11] White mates.} Ne6+ {[%emt 0:01:00]} 74. Kf5 {[%emt 0:00:08]} Nd4+ {[%emt 0:00:21]} 75. Kg6 {[%emt 0:00:22]} Ne6 {[%emt 0:00:03]} 76. Nd7 {[%emt 0:00:18] Weighted Error Value: White=0.20 (precise) /Black=0.21 (precise)} 1-0

[Event "ETCC Open 2023"]
[Site "Budva"]
[Date "2023.11.14"]
[Round "4.22"]
[White "Mamedyarov, Shakhriyar"]
[Black "Brkic, Ante"]
[Result "1-0"]
[ECO "D38"]
[WhiteElo "2734"]
[BlackElo "2622"]
[Annotator "TA"]
[PlyCount "123"]
[EventDate "2023.11.10"]
[EventType "team-tourn"]
[EventCountry "MNE"]
[SourceTitle "playchess.com"]
[Source "ChessBase"]
[SourceQuality "1"]
[WhiteTeam "Azerbaijan"]
[BlackTeam "Croatia"]
[WhiteTeamCountry "AZE"]
[BlackTeamCountry "CRO"]
[TimeControl "40/5400+30:1800+30"]

{[%evp 14,123,16,17,13,23,20,25,17,10,10,0,0,0,0,-5,0,0,0,0,0,0,0,-4,0,0,0,0,0,-10,-5,-7,0,0,0,0,-8,0,0,0,0,-42,-6,-54,0,0,0,0,0,0,0,0,0,0,0,0,0,0,0,0,33,0,13,0,0,0,0,0,0,0,12,14,181,188,347,339,234,269,256,206,194,194,194,198,572,571,571,564,564,552,584,584,579,568,556,0,0,0,0,0,2438,1141,1556,1395,29960,5042,29981,29981,29988,29989,29989,29990]} 1. d4 {[%emt 0:00:08]} Nf6 {[%emt 0:00:06]} 2. c4 {[%emt 0:00:09]} e6 {[%emt 0:00:05]} 3. Nf3 {[%emt 0:00:09]} d5 {[%emt 0:00:04]} 4. Nc3 {[%emt 0:00:08]} Bb4 {[%emt 0:00:21]} 5. Bg5 {[%emt 0:00:12]} h6 {[%emt 0:00:16]} 6. Bxf6 {[%emt 0:00:08]} Qxf6 {[%emt 0:00:06]} 7. Qa4+ {[%emt 0:00:04]} Nc6 {[%emt 0:00:09]} 8. e3 {[%emt 0:00:07]} O-O {[%emt 0:00:18] D38: Queen's Gambit Declined: Ragozin Defence (4 Nf3 Bb4).} 9. Be2 {[%emt 0:00:06]} dxc4 {[%emt 0:03:46]} 10. O-O {[%emt 0:00:46]} Qe7 {[%emt 0:00:50] White has an edge.} 11. Bxc4 {[%emt 0:00:49]} (11. a3 $5 {[%cal Ra3b4]} Bxc3 12. bxc3 $14) 11... Na5 {[%emt 0:01:20]} 12. Bd3 {[%emt 0:00:26]} Bxc3 $1 {[%emt 0:00:43]} 13. bxc3 {[%emt 0:00:08]} b6 {[%emt 0:00:04] [#]} 14. Bb1 $5 $146 {[%emt 0:00:10][%mdl 8] An interesting novelty.} ({Predecessor:} 14. c4 c5 15. d5 Bd7 16. Qa3 exd5 17. cxd5 f5 18. Rfd1 Qd6 19. Rac1 Kh8 20. Be2 Rae8 {½-½ Dautov,R (2592)-Palac,M (2516) Bundesliga 2223 2022 (8.3)}) 14... Bb7 {[%emt 0:02:52]} 15. Qc2 {[%emt 0:00:15][%csl Gb1][%cal Rc2h7]} g6 {[%emt 0:07:29]} 16. e4 {[%emt 0:04:35]} c5 {[%emt 0:03:30]} 17. Qd2 {[%emt 0:03:47]} Kg7 {[%emt 0:00:40]} 18. Bd3 {[%emt 0:00:02]} Rfd8 {[%emt 0:07:07]} 19. Rfe1 {[%emt 0:01:53]} Rac8 {[%emt 0:08:42]} 20. Rad1 {[%emt 0:01:56]} Qf6 {[%emt 0:07:32]} 21. h4 {[%emt 0:02:38]} cxd4 {[%emt 0:19:42]} 22. cxd4 {[%emt 0:00:06][%cal Oh4h5]} Nc6 {[%emt 0:00:12]} 23. e5 {[%emt 0:04:30]} Qe7 {[%emt 0:01:34]} 24. Be4 $1 {[%emt 0:01:50][%cal Oh4h5]} Rc7 {[%emt 0:04:52]} 25. h5 {[%emt 0:06:10]} Nb4 {[%emt 0:00:37]} 26. Bxb7 {[%emt 0:04:40]} Rxb7 {[%emt 0:03:09]} 27. Rc1 {[%emt 0:13:31]} Nd5 {[%emt 0:00:48]} 28. g3 {[%emt 0:02:31]} (28. hxg6 $11 fxg6 29. Rc6) 28... Rc7 {[%emt 0:02:19]} (28... g5 $15) 29. Rxc7 $11 {[%emt 0:01:09]} Qxc7 {[%emt 0:01:51]} 30. Rc1 {[%emt 0:00:03]} Qe7 {[%emt 0:00:22]} 31. hxg6 {[%emt 0:03:01]} fxg6 {[%emt 0:00:08]} 32. Nh2 {[%emt 0:00:09]} Qf7 {[%emt 0:05:22]} 33. Ng4 {[%emt 0:07:58]} g5 $1 {[%emt 0:00:04]} 34. Qe2 {[%emt 0:02:46]} Rd7 {[%emt 0:04:16][%cal Bd8d7,Bd7c7,Bc7c6][%mdl 32]} 35. Ne3 {[%emt 0:05:47]} Nxe3 {[%emt 0:03:13]} 36. Qxe3 {[%emt 0:01:29][%mdl 4096] Endgame KQR-KQR} Rc7 {[%emt 0:03:58]} 37. Rd1 {[%emt 0:01:02][%cal Od4d5]} Rc6 {[%emt 0:03:32]} 38. Qe4 {[%emt 0:02:48]} Rc4 {[%emt 0:00:11]} 39. Kg2 {[%emt 0:02:01]} Qd7 {[%emt 0:00:50]} 40. f4 {[%emt 0:03:54]} gxf4 {[%emt 0:06:21]} 41. gxf4 {[%emt 0:30:42]} Qa4 {[%emt 0:03:39]} 42. Rg1 {[%emt 0:00:00]} Kf8 $2 {[%emt 0:06:22]} (42... Qc2+ $1 $11 {and Black has nothing to worry.} 43. Kh1+ Kf7) 43. Kh3 $36 {[%emt 0:00:00][%mdl 2048] White threatens Qa8+ and mate. White is really pushing.} Qc2 $2 {[%emt 0:11:25]} (43... Rxd4 44. Qa8+ Qe8 45. Rg8+ (45. Qxa7 {is a self mate.} Qh5+ 46. Kg3 Rd3+ 47. Kg2 Qf3+ 48. Kh2 Qh3#) 45... Kxg8 46. Qxe8+ Kg7 47. Qe7+ Kg8 48. Qxe6+ Kh8 49. Qf6+ Kh7 50. Qf7+ Kh8 51. e6) (43... Rc3+ 44. Kh4 Qc2 45. Qxc2 (45. Qa8+ Rc8 $14) 45... Rxc2) 44. Qxc2 {[%emt 0:00:00]} Rxc2 {[%emt 0:00:01] KR-KR} 45. Rg6 {[%emt 0:00:00][%csl LRe6,LRh6]} Kf7 {[%emt 0:00:39]} 46. Rf6+ {[%emt 0:00:00]} Ke7 {[%emt 0:00:00]} 47. f5 {[%emt 0:00:00]} exf5 {[%emt 0:00:07]} (47... Rxa2 $2 48. Rxe6+ Kd7 49. Rxh6 $18) 48. d5 $1 {[%emt 0:00:00][%cal Bd4d5,Bd5d6][%mdl 32] aiming for d6+.} Re2 $2 {[%emt 0:06:32]} (48... Kd7 {is tougher.}) 49. d6+ {[%emt 0:00:00]} Kd7 {[%emt 0:00:20]} 50. Rf7+ $1 {[%emt 0:00:00]} Ke8 {[%emt 0:00:39]} 51. Rxf5 {[%emt 0:00:00]} b5 {[%emt 0:02:33][%cal Oa7a5] [#]} 52. Kg4 $1 {[%emt 0:00:00]} b4 {[%emt 0:00:20][%cal Oa7a5]} 53. Rh5 {[%emt 0:00:11]} Kd7 {[%emt 0:02:55] [#]} 54. Kf5 $2 {[%emt 0:03:16]} (54. Kf4 $1 $18 Rxa2 55. Rxh6) 54... Rxa2 $11 {[%emt 0:00:42] ...b3 would be deadly.} 55. Rxh6 {[%emt 0:00:02] Strongly threatening Rh7+.} Rf2+ {[%emt 0:01:08]} 56. Ke4 {[%emt 0:00:03] Black must now prevent Rh7+.} Re2+ $2 {[%emt 0:00:46][%mdl 8192]} (56... b3 $11) 57. Kd5 $18 {[%emt 0:00:49] e6+ would kill now.} Rd2+ {[%emt 0:00:44]} 58. Kc5 {[%emt 0:00:05] White wants to mate with e6+.} Re2 {[%emt 0:00:37]} 59. Rh7+ {[%emt 0:00:14]} (59. Kxb4 Rxe5 60. Rh7+ Kxd6 $11) 59... Kc8 {[%emt 0:00:27]} 60. e6 {[%emt 0:00:52] White mates.} ({Weaker is} 60. Rxa7 b3 $11) 60... b3 {[%emt 0:00:24]} 61. d7+ {[%emt 0:02:05]} ({Stronger than} 61. Rxa7 Rxe6 62. Kc6 Rxd6+ 63. Kxd6 b2 $11) 61... Kc7 {[%emt 0:00:00]} 62. Rh8 {[%emt 0:00:06] Weighted Error Value: White=0.12 (very precise) /Black=0.38} 1-0

[Event "ETCC Open 2023"]
[Site "Budva"]
[Date "2023.11.14"]
[Round "4.23"]
[White "Martinovic, Sasa"]
[Black "Mamedov, Rauf"]
[Result "1/2-1/2"]
[ECO "D10"]
[WhiteElo "2542"]
[BlackElo "2644"]
[Annotator "TA"]
[PlyCount "71"]
[EventDate "2023.11.10"]
[EventType "team-tourn"]
[EventCountry "MNE"]
[SourceTitle "playchess.com"]
[Source "ChessBase"]
[SourceQuality "1"]
[WhiteTeam "Croatia"]
[BlackTeam "Azerbaijan"]
[WhiteTeamCountry "CRO"]
[BlackTeamCountry "AZE"]
[TimeControl "40/5400+30:1800+30"]

{[%evp 10,71,33,29,31,40,39,37,33,35,42,45,39,27,37,18,7,20,22,20,14,13,8,9,72,12,12,11,0,7,8,21,26,4,12,13,3,5,38,35,63,75,80,72,75,100,84,83,147,147,147,147,218,213,213,0,0,0,85,0,9,0,0,0]} 1. d4 {[%emt 0:00:02]} d5 {[%emt 0:00:11]} 2. c4 {[%emt 0:00:06]} c6 {[%emt 0:00:03]} 3. Nc3 {[%emt 0:00:17]} Nf6 {[%emt 0:00:06]} 4. e3 {[%emt 0:00:13]} Bf5 {[%emt 0:00:04]} 5. cxd5 {[%emt 0:00:42]} cxd5 {[%emt 0:00:04]} 6. Qb3 {[%emt 0:00:12]} Nc6 {[%emt 0:00:17] D10: Slav Defence: 3 cxd5 (without early Nf3) and 3 Nc3.} 7. Qxb7 {[%emt 0:00:13]} Bd7 $1 {[%emt 0:00:03]} 8. Qb3 {[%emt 0:00:29]} Rb8 {[%emt 0:00:05] White is slightly better.} 9. Qd1 {[%emt 0:00:14]} e5 {[%emt 0:00:04]} 10. Nf3 {[%emt 0:00:17]} Bd6 {[%emt 0:03:12]} 11. dxe5 {[%emt 0:00:10]} Nxe5 {[%emt 0:00:03]} 12. Be2 {[%emt 0:00:07]} Nxf3+ {[%emt 0:00:05]} 13. Bxf3 {[%emt 0:00:09]} Qc7 {[%emt 0:00:03]} 14. h3 {[%emt 0:01:07]} O-O $1 {[%emt 0:01:47]} 15. O-O {[%emt 0:00:10][%cal Be1g1,Bg1h1,Bh1g2][%mdl 32]} Rfd8 {[%emt 0:00:05]} (15... Bh2+ 16. Kh1 $16) 16. a4 {[%emt 0:01:08]} Bh2+ {[%emt 0:00:36]} 17. Kh1 {[%emt 0:00:05]} Be5 $1 {[%emt 0:00:04]} 18. Nxd5 {[%emt 0:01:39]} Nxd5 {[%emt 0:01:51]} 19. Bxd5 {[%emt 0:00:05]} Bxh3 {[%emt 0:03:36]} 20. gxh3 {[%emt 0:03:25]} Qd7 $1 {[%emt 0:00:39] [#]} 21. Kg2 {[%emt 0:01:59] Hoping for e4.} Qxd5+ {[%emt 0:02:09]} 22. Qxd5 {[%emt 0:00:08]} Rxd5 {[%emt 0:00:03]} 23. e4 $36 {[%emt 0:01:16][%mdl 2048] [#] White is more active.} Rd7 $146 {[%emt 0:12:05][%cal Of7f6]} (23... Bxb2 $2 24. Rb1 Rd4 25. Rxb2 $18 (25. Bxb2 Rdb4 $18)) ({Predecessor:} 23... Rd6 24. Be3 Bd4 25. Bxd4 Rxd4 26. Rfd1 Rxe4 27. Rd7 h5 28. Ra3 Rf4 29. Rxa7 Rxb2 30. Rf3 Rxf3 31. Kxf3 {½-½ Al Sayed,M (2520)-Matlakov,M (2684) Qatar Masters op 2015 (2)}) 24. Be3 {[%emt 0:04:38]} Bxb2 {[%emt 0:04:17]} 25. Rab1 {[%emt 0:16:26]} h6 {[%emt 0:48:23]} 26. Rfc1 {[%emt 0:02:14]} Rb4 {[%emt 0:05:09]} 27. Rc8+ {[%emt 0:21:58]} Kh7 {[%emt 0:00:03][%cal Ob2c3]} 28. Ra8 {[%emt 0:00:51] And now a5 would win.} Rdb7 {[%emt 0:05:22]} 29. a5 {[%emt 0:02:10][%cal Ba4a5,Ba5a6,Ba6b7][%mdl 32] White is more active.} (29. Bxa7 Rxa4 30. Kf3 Rb3+ 31. Kg2 Rxe4 $17) (29. Rxa7 $6 Rxa7 30. Bxa7 Rxa4 $11) 29... Bd4 {[%emt 0:00:08]} 30. a6 $1 {[%emt 0:29:49]} Rxb1 {[%emt 0:02:31]} (30... R7b5 $16) 31. axb7 $16 {[%emt 0:00:07] KRB-KRB} Be5 {[%emt 0:00:06] [#]} 32. Bd4 $2 {[%emt 0:03:27]} Bf4 $11 {[%emt 0:02:39]} 33. Be3 {[%emt 0:02:26]} Bc7 {[%emt 0:03:21] [#]} (33... Be5 $1 $11) 34. Rxa7 {[%emt 0:04:03]} ({Of course not} 34. Bxa7 $6 Rxb7 35. Be3 f6 $11) (34. Re8 $1 $16 {[%cal Re8e7]}) 34... Bb8 {[%emt 0:00:03]} 35. Ra6 {[%emt 0:00:27] Black must now prevent Rb6.} Rxb7 {[%emt 0:00:05]} 36. Rb6 {[%emt 0:00:05] Weighted Error Value: White=0.17 (very precise) /Black=0.08 (flawless)} 1/2-1/2

[Event "ETCC Open 2023"]
[Site "Budva"]
[Date "2023.11.14"]
[Round "4.24"]
[White "Abasov, Nijat"]
[Black "Bosiocic, Marin"]
[Result "0-1"]
[ECO "B10"]
[WhiteElo "2679"]
[BlackElo "2537"]
[Annotator "TA"]
[PlyCount "72"]
[EventDate "2023.11.10"]
[EventType "team-tourn"]
[EventCountry "MNE"]
[SourceTitle "playchess.com"]
[Source "ChessBase"]
[SourceQuality "1"]
[WhiteTeam "Azerbaijan"]
[BlackTeam "Croatia"]
[WhiteTeamCountry "AZE"]
[BlackTeamCountry "CRO"]
[TimeControl "40/5400+30:1800+30"]

{[%evp 9,72,10,10,10,24,18,44,27,25,15,22,15,19,15,18,0,0,0,13,0,32,26,45,5,139,155,124,127,281,214,199,79,113,59,61,-13,316,-33,16,0,0,-274,-259,-264,-264,-379,-299,-287,-252,-351,-200,-215,-224,-167,-146,-237,-219,-650,-643,-612,-568,-1100,-1073,-863,-849]} 1. e4 {[%emt 0:00:02]} c6 {[%emt 0:00:39]} 2. Nf3 {[%emt 0:01:33]} d5 {[%emt 0:00:14]} 3. d3 {[%emt 0:00:08]} Qc7 {[%emt 0:01:41]} 4. Nc3 {[%emt 0:00:30]} dxe4 {[%emt 0:00:35]} 5. Nxe4 {[%emt 0:00:09]} Nf6 {[%emt 0:00:12]} 6. Qe2 {[%emt 0:00:13] B10: Caro-Kann: 2 d3 and 2 c4.} Nxe4 {[%emt 0:00:14]} 7. Qxe4 {[%emt 0:00:05]} Be6 {[%emt 0:00:14]} 8. c4 {[%emt 0:00:10] White is slightly better.} (8. Bf4 {keeps more tension.} Qb6 9. Be2 Bd5 10. Qe3) 8... Nd7 {[%emt 0:00:15] [#]} 9. Be2 $146 {[%emt 0:00:38]} ({Predecessor:} 9. Ng5 Nf6 10. Nxe6 Qa5+ 11. Bd2 Qxd2+ 12. Kxd2 Nxe4+ 13. dxe4 fxe6 14. e5 g5 15. Re1 Bg7 16. Bd3 O-O 17. Rhf1 Rad8 18. Kc2 Rd4 19. f3 g4 {½-½ Abasov,N (2634)-Mendonca,L (2596) Baku op 2023 (8)}) 9... Nf6 {[%emt 0:01:08]} 10. Qe3 {[%emt 0:00:08]} Bf5 {[%emt 0:00:09]} 11. Bd2 {[%emt 0:04:27]} e6 {[%emt 0:16:07]} 12. Bc3 {[%emt 0:00:37]} Bd6 {[%emt 0:01:41]} 13. Ne5 {[%emt 0:00:33]} O-O {[%emt 0:11:55]} 14. f4 {[%emt 0:05:44]} b5 {[%emt 0:03:47]} (14... Qb6 $5 {[%cal Rb6e3]} 15. d4 c5 $11) 15. g4 $36 {[%emt 0:04:27][%mdl 2048] White is pushing.} Bg6 {[%emt 0:00:08]} 16. h4 {[%emt 0:03:41]} h5 {[%emt 0:05:06]} (16... bxc4 $11 17. dxc4 Qb6 18. Qxb6 axb6) 17. gxh5 $1 $16 {[%emt 0:16:26]} (17. Nxg6 $6 fxg6 18. O-O (18. Qxe6+ $2 Kh8 $19) 18... b4 $11) 17... Nxh5 {[%emt 0:01:33]} 18. c5 {[%emt 0:11:15]} Be7 {[%emt 0:10:07]} (18... Bxe5 $16 19. fxe5 Kh7) 19. O-O-O {[%emt 0:00:11] Rdg1 is the strong threat.} (19. Nxg6 fxg6 20. Qxe6+ Kh7 $16) 19... Bf6 {[%emt 0:04:45][%cal Ob5b4]} 20. Rdg1 {[%emt 0:10:15]} (20. Nxg6 $6 fxg6 21. Be5 (21. Qxe6+ Qf7 $14) 21... Bxe5 22. fxe5 Rf7 $16) (20. d4 $1 $18 {and White stays clearly on top.}) 20... b4 {[%emt 0:04:12]} 21. Bd4 {[%emt 0:00:06]} (21. Bxb4 Nxf4 22. Qxf4 Bxe5 $15) (21. Nxg6 bxc3 22. Bxh5 (22. Nxf8 Nxf4 23. Bf3 Rd8 $17) 22... Qa5 $11) ({White should try} 21. Bxh5 $16 Bxh5 22. Bxb4) 21... Rad8 $14 {[%emt 0:05:32][%cal Oh5f4] [#]} 22. Rg5 {[%emt 0:00:39]} ({White should play} 22. Bxh5 $1 $14 Bxh5 23. Rg5) 22... Rd5 $2 {[%emt 0:01:09][%mdl 8192] [#]} (22... Bxg5 $2 23. hxg5 Rxd4 24. Bxh5 $18 (24. Qxd4 Ng3 $16) (24. Qxd4 Ng3 $16)) (22... Nxf4 $1 $11 23. Qxf4 Rxd4 24. Qxd4 Bf5) 23. b3 $2 {[%emt 0:04:18]} Rfd8 {[%emt 0:00:59]} (23... Nxf4 $1 $15 24. Qxf4 Rxd4 25. Qxd4 Bf5) 24. Bb2 {[%emt 0:00:30][%cal Od3d4] Black must now prevent d4!} (24. Bxh5 {simplifies} Rxd4 25. Bxg6 fxg6 26. Rxg6 Bxe5 27. Qxe5 Qxe5 28. fxe5 R8d5 29. Rxe6 Rxc5+ 30. Kd2) 24... Bxe5 {[%emt 0:06:25]} (24... Nxf4 25. Qxf4 Bf5 26. Rxf5 exf5 27. d4 $18) 25. Rxe5 {[%emt 0:01:35][%mdl 8192] [#]} (25. Bxe5 $11 {and White has nothing to worry.} Qa5 26. Rd1 (26. Bxh5 $2 Rxd3 $19)) 25... Rxd3 $1 $19 {[%emt 0:02:51]} (25... Nxf4 26. Qxf4 $18) 26. Bxd3 {[%emt 0:01:01]} Rxd3 {[%emt 0:00:06]} 27. Qe1 {[%emt 0:07:29] White is weak on the light squares} (27. Qf2 $142 f6 28. f5 Bxf5 29. Rxf5 exf5 30. Qxf5 Qf4+ 31. Qxf4 Nxf4 32. Kb1) 27... f6 {[%emt 0:04:54]} 28. f5 {[%emt 0:00:38]} exf5 {[%emt 0:02:50]} (28... Bxf5 29. Rxf5 Nf4 30. Be5 fxe5 31. Qxe5 Qxe5 32. Rxe5 $16) (28... fxe5 29. fxg6 Rd5 30. Qxb4 $11) 29. Re7 {[%emt 0:01:10]} Qf4+ {[%emt 0:02:22]} (29... Qd8 $142 {...f4 would be deadly.} 30. Rg1 Kh7) 30. Kb1 {[%emt 0:00:24]} Qg4 {[%emt 0:00:58]} 31. Ka1 {[%emt 0:10:02]} (31. Rxa7 $2 f4 32. Ka1 f3 $19) 31... f4 {[%emt 0:00:48][%cal Bf5f4,Bf4f3][%mdl 32]} 32. Rf1 {[%emt 0:00:20]} (32. Rg1 $17 Qf5 33. Qe6+ (33. Rxa7 $2 {too greedy.} f3 $19) 33... Qxe6 34. Rxe6) 32... f3 {[%emt 0:01:55] And now ...Qg2 would win.} ({Weaker is} 32... Ng3 33. Rg1 $17) 33. Rg1 {[%emt 0:02:28] Prevents Qg2} (33. Rxa7 f2 34. Qc1 Ng3 35. Rxf2 Rd1 $19) (33. Re3 f2 34. Qe2 Qxe2 35. Rxe2) 33... Qf5 {[%emt 0:00:58] Hoping for ...f2. Black is clearly winning.} 34. Qf2 {[%emt 0:00:45] [#]} Qd5 $1 {[%emt 0:03:23] ( -> ...Rd1+)} 35. Rc1 {[%emt 0:02:13]} (35. Bc1 Rc3) 35... Rd2 {[%emt 0:01:14]} 36. Qg1 {[%emt 0:00:27]} Kh7 {[%emt 0:00:42] Weighted Error Value: White=0.70/Black=0.33} 0-1